[Event "NY Presidents Day GM-A 2024"]
[Site "New York"]
[Date "2024.02.16"]
[Round "1.1"]
[White "Eidelman, Gabriel"]
[Black "Lu, Maximillian"]
[Result "1-0"]
[ECO "E13"]
[WhiteElo "2343"]
[BlackElo "2371"]
[Annotator "TA"]
[PlyCount "47"]
[EventDate "2024.02.14"]
[EventType "tourn"]
[EventCountry "USA"]
[SourceTitle "playchess.com"]
[Source "ChessBase"]
[SourceQuality "1"]
[TimeControl "5400+30"]

{[%evp 16,47,0,0,0,0,0,0,0,3,54,18,39,-17,247,240,246,242,419,457,456,457,1133,1086,1331,566,1313,1334,1582,1663,1610,1492,2821,1881]} 1. d4 {[%emt 0:00:06]} Nf6 {[%emt 0:00:05]} 2. Nf3 {[%emt 0:00:12]} e6 {[%emt 0:02:52]} 3. c4 {[%emt 0:00:09]} b6 {[%emt 0:00:38]} 4. Nc3 {[%emt 0:02:24]} Bb4 {[%emt 0:00:04]} 5. Bg5 {[%emt 0:03:14][%cal Bc1g5,Bg5h4,Bh4g3][%mdl 32]} Bb7 {[%emt 0:06:32]} 6. e3 {[%emt 0:00:10]} h6 {[%emt 0:00:19]} 7. Bh4 {[%emt 0:00:08]} g5 {[%emt 0:04:13]} 8. Bg3 {[%emt 0:00:07]} Ne4 {[%emt 0:00:04]} 9. Nd2 {[%emt 0:00:32]} Nxc3 {[%emt 0:04:10]} 10. bxc3 {[%emt 0:02:04]} Bxc3 {[%emt 0:00:03]} 11. Rc1 {[%emt 0:00:09]} Bxd2+ {[%emt 0:01:34] The position is equal.} 12. Qxd2 {[%emt 0:00:11]} d6 {[%emt 0:00:25]} (12... h5 $11 13. h4 g4) 13. Qb2 {[%emt 0:16:38]} f5 {[%emt 0:16:30]} 14. h4 {[%emt 0:10:38]} (14. c5 $14) 14... O-O $2 {[%emt 0:08:36][%mdl 8192] A mistake that costs the game.} (14... f4 $1 $11 {and Black has nothing to worry.} 15. exf4 gxf4 16. Bxf4 Qf6) 15. hxg5 $18 {[%emt 0:03:49]} hxg5 {[%emt 0:00:01] [#]} 16. c5 $1 {[%emt 0:14:45]} Qe7 $2 {[%emt 0:13:20]} (16... Rf7 17. cxd6 cxd6) 17. cxd6 {[%emt 0:08:57]} cxd6 {[%emt 0:02:24] White is clearly winning.} 18. Qa3 {[%emt 0:00:13]} Rd8 {[%emt 0:00:40]} (18... f4 $142) 19. Be5 {[%emt 0:01:22] And now Rh8+ would win.} Nc6 {[%emt 0:03:52]} 20. Rh8+ {[%emt 0:00:45]} Kf7 {[%emt 0:00:01][%cal Bg8f7,Bf7f8,Bf8e7][%mdl 32]} 21. Rh7+ {[%emt 0:00:12]} Kf8 {[%emt 0:00:01]} 22. Rxe7 {[%emt 0:00:27]} Kxe7 {[%emt 0:00:01]} 23. Ba6 {[%emt 0:03:28]} Bxa6 {[%emt 0:00:48]} 24. Rxc6 {[%emt 0:00:21] Weighted Error Value: White=0.10 (very precise) /Black=0.87.  Loses game:     	---       	Black=1      Mistake:       	White=1     	Black=3      Inaccurate:     	White=1     	---        OK:         	White=2     	---        Best:        	White=3     	---        Strong:       	White=1     	---} 1-0

[Event "NY Presidents Day GM-A 2024"]
[Site "New York"]
[Date "2024.02.16"]
[Round "1.2"]
[White "Paragua, Mark"]
[Black "Lenderman, Aleksandr"]
[Result "1/2-1/2"]
[ECO "A30"]
[WhiteElo "2448"]
[BlackElo "2521"]
[Annotator "TA"]
[PlyCount "31"]
[EventDate "2024.02.14"]
[EventType "tourn"]
[EventCountry "USA"]
[SourceTitle "playchess.com"]
[Source "ChessBase"]
[SourceQuality "1"]
[TimeControl "5400+30"]

{[%evp 18,31,26,18,33,32,33,32,27,30,33,15,34,7,14,22]} 1. Nf3 Nf6 2. g3 g6 3. b3 Bg7 4. Bb2 b6 5. Bg2 Bb7 6. c4 c5 7. O-O O-O 8. d4 cxd4 9. Qxd4 d6 10. Nc3 Ne4 11. Qe3 Nxc3 12. Bxc3 Bxc3 13. Qxc3 Nd7 14. Rad1 Qc7 15. Nd4 Bxg2 16. Kxg2 {[%emt 0:08:00] Weighted Error Value: White=0.10 (very precise) /Black=0.08 (flawless) .  Inaccurate:     	White=1     	---        OK:         	White=1     	Black=1} 1/2-1/2

[Event "NY Presidents Day GM-A 2024"]
[Site "New York"]
[Date "2024.02.16"]
[Round "1.3"]
[White "Griffith, Kyron"]
[Black "Mandizha, Farai"]
[Result "0-1"]
[ECO "B90"]
[WhiteElo "2367"]
[BlackElo "2367"]
[Annotator "TA"]
[PlyCount "64"]
[EventDate "2024.02.14"]
[EventType "tourn"]
[EventCountry "USA"]
[SourceTitle "playchess.com"]
[Source "ChessBase"]
[SourceQuality "1"]
[TimeControl "5400+30"]

{[%evp 13,64,2,17,5,4,15,47,24,20,-28,-26,-37,-27,-17,0,0,0,-77,-52,-106,-99,-97,-92,-97,-64,-83,-90,-124,-125,-118,-94,-143,-181,-181,-149,-149,-143,-121,-145,-166,-168,-237,-228,-328,-336,-385,-410,-395,-388,-376,-133,-5502,-5489]} 1. e4 {[%emt 0:04:28]} c5 {[%emt 0:00:05]} 2. Nf3 {[%emt 0:00:15]} d6 {[%emt 0:01:12]} 3. d4 {[%emt 0:00:29]} cxd4 {[%emt 0:00:04]} 4. Nxd4 {[%emt 0:00:03]} Nf6 {[%emt 0:00:03]} 5. Nc3 {[%emt 0:00:09]} a6 {[%emt 0:00:11]} 6. Rg1 {[%emt 0:01:04]} e5 {[%emt 0:03:33]} 7. Nb3 {[%emt 0:00:06]} Be6 {[%emt 0:00:39]} 8. g4 {[%emt 0:00:25]} h6 {[%emt 0:03:06]} 9. Be3 {[%emt 0:02:01]} Nbd7 {[%emt 0:00:39]} 10. Qf3 {[%emt 0:03:11] White is slightly better.} Rc8 {[%emt 0:02:09]} 11. O-O-O {[%emt 0:01:12] [#]} (11. h4 {deserves consideration.}) 11... Rxc3 $1 $11 {[%emt 0:06:04]} 12. bxc3 {[%emt 0:00:20]} Qc7 {[%emt 0:00:27]} 13. Kb2 {[%emt 0:02:50]} Nb6 {[%emt 0:16:57]} 14. Bxb6 {[%emt 0:01:15]} Qxb6 {[%emt 0:00:03]} 15. Bd3 {[%emt 0:07:58]} (15. h4 $11 {keeps the balance.}) 15... Be7 {[%emt 0:01:29][%mdl 1024] Black has strong compensation.} 16. Qe2 {[%emt 0:09:11]} (16. h4 $15) 16... Qc7 $17 {[%emt 0:01:26] Black has more active pieces.} 17. c4 {[%emt 0:13:25]} Nd7 {[%emt 0:01:30]} 18. Ka1 {[%emt 0:15:41]} Nb6 {[%emt 0:04:45][%cal Ob6a4]} 19. Qd2 {[%emt 0:03:30]} Nxc4 {[%emt 0:05:33]} (19... Bxc4 $6 20. Qc3 O-O 21. Nd2 $11) 20. Bxc4 {[%emt 0:03:06]} Qxc4 {[%emt 0:00:09]} (20... Bxc4 21. Qc3 $15) 21. Qd3 {[%emt 0:00:45]} Qa4 {[%emt 0:03:06]} 22. f3 {[%emt 0:04:57] [#]} (22. h4 $142) 22... O-O $1 {[%emt 0:02:07]} 23. Rb1 {[%emt 0:04:33]} Bc4 {[%emt 0:04:56]} 24. Qe3 {[%emt 0:02:18]} d5 {[%emt 0:14:55]} 25. exd5 {[%emt 0:01:24]} Bxd5 {[%emt 0:00:48] This pair of bishops is nice.} 26. c3 {[%emt 0:02:06]} Rc8 {[%emt 0:05:24][%cal Oe7c5] Strongly threatening ...Bc5!} 27. Qxe5 {[%emt 0:03:18]} (27. Rgd1 $142 Bg5 28. Qd3) 27... Be6 $40 {[%emt 0:00:15][%mdl 128] White must now prevent ...Bf6. Black wants a kill.} 28. Rgc1 {[%emt 0:02:24]} (28. g5 $142 hxg5 (28... Bxg5 $2 29. Rb2 $19) 29. Rxg5 Bxg5 30. Qxg5) 28... Bf6 {[%emt 0:00:37]} 29. Qe1 {[%emt 0:04:24]} b5 {[%emt 0:00:19] aiming for ...b4.} 30. Rb2 {[%emt 0:00:48]} b4 {[%emt 0:03:51]} 31. cxb4 {[%emt 0:00:33]} Rxc1+ {[%emt 0:00:12]} (31... Bxb2+ 32. Kxb2 Rb8 33. Qd2 $17) (31... Re8 $19 {and Black stays clearly on top.} 32. Qd1 Qxb4 (32... Bxb2+ $2 33. Kxb2 Qxb4 34. Qd2 $19)) 32. Nxc1 {[%emt 0:00:08][%mdl 8192]} (32. Qxc1 $17 Qxb4 (32... Bxb3 33. Qc8+ Kh7 34. Qf5+ Kh8 35. Qc8+ Kh7 36. Qf5+ Kh8 37. Qc8+ Kh7 $11) (32... Bxb2+ 33. Kxb2 Qxb4 34. h4 $17) 33. Kb1) 32... Qc2 {[%emt 0:19:56] Weighted Error Value: White=0.40/Black=0.24 (precise) .  Loses game:     	White=1     	---        Missed win:     	---       	Black=1      Mistake:       	White=6     	---        Inaccurate:     	White=1     	Black=2      OK:         	White=7     	Black=5      Best:        	White=2     	Black=4      Strong:       	---       	Black=1      Brilliant:      	---       	Black=1} (32... Bxb2+ 33. Kxb2 Qc6 34. Qc3 $15) 0-1

[Event "NY Presidents Day GM-A 2024"]
[Site "New York"]
[Date "2024.02.16"]
[Round "1.4"]
[White "Novik, Maxim"]
[Black "Kaliksteyn, Alexander"]
[Result "1-0"]
[ECO "D02"]
[WhiteElo "2399"]
[BlackElo "2363"]
[Annotator "TA"]
[PlyCount "39"]
[EventDate "2024.02.14"]
[EventType "tourn"]
[EventCountry "USA"]
[SourceTitle "playchess.com"]
[Source "ChessBase"]
[SourceQuality "1"]
[TimeControl "5400+30"]

{[%evp 10,39,5,-12,8,-8,-2,0,-11,0,2,-17,-11,0,0,0,0,-8,30,27,39,26,20,30,50,43,27,25,85,82,173,167]} 1. d4 {[%emt 0:00:31]} d5 {[%emt 0:00:25]} 2. Bf4 {[%emt 0:00:35]} Nf6 {[%emt 0:01:18]} 3. e3 {[%emt 0:00:15]} e6 {[%emt 0:00:14]} 4. Nf3 {[%emt 0:01:48]} Bd6 {[%emt 0:12:21]} 5. Bg3 {[%emt 0:02:05]} O-O {[%emt 0:00:56]} 6. Nbd2 {[%emt 0:00:20]} c5 {[%emt 0:00:12]} 7. c3 {[%emt 0:00:17]} Qc7 {[%emt 0:00:37]} 8. dxc5 {[%emt 0:05:26]} Qxc5 {[%emt 0:00:40] The position is equal.} 9. Bd3 {[%emt 0:00:07]} Nbd7 {[%emt 0:11:36]} 10. O-O {[%emt 0:04:39]} Bxg3 {[%emt 0:03:59]} 11. hxg3 {[%emt 0:00:53]} e5 {[%emt 0:05:56] [#] And now ...e4 would win.} 12. e4 {[%emt 0:00:42]} dxe4 {[%emt 0:00:23]} 13. Bxe4 {[%emt 0:00:35]} a5 {[%emt 0:14:10]} 14. Re1 {[%emt 0:01:30]} Ra6 {[%emt 0:00:36]} 15. Bf5 {[%emt 0:05:35]} Re8 {[%emt 0:09:27]} 16. Qe2 {[%emt 0:18:17]} g6 {[%emt 0:23:33]} 17. Bxd7 {[%emt 0:23:31]} Nxd7 {[%emt 0:00:09]} 18. Rad1 {[%emt 0:05:17]} h6 {[%emt 0:00:12]} (18... Qc7 $11 {keeps the balance.}) 19. Ne4 $16 {[%emt 0:01:22]} Qe7 {[%emt 0:00:29]} (19... Qc7 $16) 20. Qd2 {[%emt 0:02:22] Weighted Error Value: White=0.05 (flawless) /Black=0.23 (precise) .  Mistake:       	---       	Black=2      Inaccurate:     	---       	Black=1      OK:         	White=4     	Black=3      Best:        	White=2     	---} 1-0

[Event "NY Presidents Day GM-A 2024"]
[Site "New York"]
[Date "2024.02.16"]
[Round "1.5"]
[White "Yu, Jiangwei"]
[Black "Rorrer, Grayson"]
[Result "0-1"]
[ECO "E53"]
[WhiteElo "2357"]
[BlackElo "2396"]
[Annotator "TA"]
[PlyCount "56"]
[EventDate "2024.02.14"]
[EventType "tourn"]
[EventCountry "USA"]
[SourceTitle "playchess.com"]
[Source "ChessBase"]
[SourceQuality "1"]
[TimeControl "5400+30"]

{[%evp 18,56,2,0,1,-16,10,0,18,0,24,8,21,22,27,29,39,-10,0,0,0,-165,-169,-171,-197,-179,0,0,0,0,0,-495,-371,-377,-371,-371,-382,-369,-375,-390,-368]} 1. d4 {[%emt 0:00:38]} Nf6 {[%emt 0:00:08]} 2. c4 {[%emt 0:00:03]} e6 {[%emt 0:00:06]} 3. Nc3 {[%emt 0:00:11]} Bb4 {[%emt 0:00:07]} 4. e3 {[%emt 0:00:08]} O-O {[%emt 0:00:09]} 5. Bd3 {[%emt 0:01:33]} d5 {[%emt 0:00:07]} 6. a3 {[%emt 0:00:07]} Bxc3+ {[%emt 0:00:07]} 7. bxc3 {[%emt 0:00:04]} dxc4 {[%emt 0:00:09]} 8. Bxc4 {[%emt 0:00:05]} c5 {[%emt 0:00:06]} 9. Nf3 {[%emt 0:00:10]} Qc7 {[%emt 0:00:35]} 10. Be2 {[%emt 0:00:12]} b6 {[%emt 0:02:49]} 11. Bb2 {[%emt 0:00:17]} Rd8 {[%emt 0:04:19]} 12. O-O {[%emt 0:01:19]} Nc6 {[%emt 0:01:35] The position is equal.} 13. c4 {[%emt 0:03:30]} cxd4 {[%emt 0:04:36]} 14. exd4 {[%emt 0:00:05]} Bb7 {[%emt 0:00:11]} 15. Re1 {[%emt 0:20:40]} Rac8 {[%emt 0:06:08]} (15... Na5 {keeps more tension.} 16. Rc1 Qf4 17. Ne5 Rac8) 16. Bd3 {[%emt 0:03:19][%cal Od4d5]} Ne7 {[%emt 0:12:54] [#]} 17. d5 {[%emt 0:40:03]} exd5 {[%emt 0:02:28]} 18. Be5 {[%emt 0:00:23] This pair of bishops is nice.} Qd7 {[%emt 0:06:57]} 19. Nd4 $2 {[%emt 0:01:33]} (19. Bxf6 $11 gxf6 20. cxd5 Bxd5 21. Bf1) 19... dxc4 $19 {[%emt 0:03:30]} 20. Bxf6 {[%emt 0:00:30]} gxf6 {[%emt 0:00:07]} 21. Rxe7 {[%emt 0:18:11][%cal Od1h5] [#] White wants to mate with Qh5!} Qxe7 $2 $40 {[%emt 0:00:32][%mdl 128] Black is up to no good.} (21... Qxd4 $19 22. Bxh7+ Kg7 23. Qxd4 Rxd4) 22. Nf5 $1 $11 {[%emt 0:00:39]} Qe6 {[%emt 0:06:37]} 23. Qg4+ {[%emt 0:01:09]} Kf8 {[%emt 0:00:05]} 24. Qg7+ $2 {[%emt 0:00:56][%mdl 8192]} (24. Qh4 $11 {and White is okay.} Qd5 (24... Rxd3 $2 {too greedy.} 25. Qh6+ Ke8 26. Ng7+ Kd8 27. Nxe6+ fxe6 28. Qxf6+ Kc7 29. Qf4+ Kd7 30. Qf7+ Kc6 31. Qxh7 $18) 25. Qh6+ Ke8 26. Re1+ Kd7 27. Re7+ Kc6 28. Qxf6+ (28. Be4 $2 Qxe4 29. Qc1 Qxf5 $19) 28... Kb5 29. Bf1 (29. Re5 cxd3 30. h3 Rc1+ 31. Kh2 Ka6 $19)) 24... Ke8 $19 {[%emt 0:00:05][%cal Bf8e8,Be8d7,Bd7c7,Bc7b8][%mdl 32]} 25. Bc2 {[%emt 0:04:32] Threatens to win with Ba4+. Black is winning.} Rc5 {[%emt 0:03:07]} 26. Qxh7 {[%emt 0:00:55]} Kd7 {[%emt 0:00:24]} 27. Ne3 {[%emt 0:01:54]} Kc7 {[%emt 0:00:48][%cal Of6f5] ...f5! is the strong threat.} 28. Qh4 {[%emt 0:00:44]} Kb8 {[%emt 0:01:22] Weighted Error Value: White=0.42/Black=0.16 (very precise) .  Loses game:     	White=2     	---        Missed win:     	---       	Black=1      Mistake:       	White=1     	---        Inaccurate:     	---       	Black=1      OK:         	White=7     	Black=3      Best:        	White=2     	Black=2      Strong:       	White=1     	---} 0-1

[Event "NY Presidents Day GM-A 2024"]
[Site "New York"]
[Date "2024.02.16"]
[Round "2.1"]
[White "Lu, Maximillian"]
[Black "Rorrer, Grayson"]
[Result "1-0"]
[ECO "A11"]
[WhiteElo "2371"]
[BlackElo "2396"]
[Annotator "TA"]
[PlyCount "51"]
[EventDate "2024.02.14"]
[EventType "tourn"]
[EventCountry "USA"]
[SourceTitle "playchess.com"]
[Source "ChessBase"]
[SourceQuality "1"]
[TimeControl "5400+30"]

{[%evp 12,51,0,0,0,0,0,0,0,0,0,0,0,0,68,55,93,81,188,116,116,66,159,93,93,119,243,231,280,201,211,203,218,74,320,301,327,200,619,608,2125,1188]} 1. Nf3 {[%emt 0:01:18]} Nf6 {[%emt 0:00:13]} 2. g3 {[%emt 0:00:11]} d5 {[%emt 0:00:08][%cal Bd7d5,Bd5c4][%mdl 32]} 3. Bg2 {[%emt 0:00:03]} c6 {[%emt 0:00:08]} 4. c4 {[%emt 0:00:07]} dxc4 {[%emt 0:03:33]} 5. O-O {[%emt 0:00:20]} Nbd7 {[%emt 0:00:06]} 6. Na3 {[%emt 0:00:09]} Nb6 {[%emt 0:00:47]} 7. Qc2 {[%emt 0:00:01]} Be6 {[%emt 0:00:22]} 8. Ne5 {[%emt 0:00:32]} h5 {[%emt 0:02:07]} 9. Naxc4 {[%emt 0:00:30]} Nxc4 {[%emt 0:00:09] The position is equal.} 10. Nxc4 {[%emt 0:00:01]} h4 {[%emt 0:00:09]} 11. Ne5 {[%emt 0:00:02][%cal Od2d4]} hxg3 {[%emt 0:01:49]} 12. hxg3 {[%emt 0:00:08][%cal Od2d4]} Qd6 {[%emt 0:01:05] [#]} (12... Qd4 $11 13. Nxc6 Qd6) 13. d4 $1 $14 {[%emt 0:06:40] And now Bf4 would win.} Rd8 {[%emt 0:00:53]} (13... Rc8 14. Rd1) 14. Rd1 {[%emt 0:04:40][%cal Ob2b4]} Bh3 {[%emt 0:05:50]} (14... Qc7 $16) 15. Bf3 {[%emt 0:08:03]} ({White should play} 15. Qb3 $18 {[%csl Ge5][%cal Rb3f7]} Qe6 16. Bxh3 (16. Qxb7 Bxg2 17. Kxg2 Qh3+ 18. Kf3 Qf5+ 19. Kg2 Qh3+ 20. Kf3 Qf5+ 21. Kg2 Qh3+ $11) 16... Rxh3 17. Qxb7) 15... Qe6 $16 {[%emt 0:11:51]} 16. Bf4 {[%emt 0:08:36]} (16. Bg5 $16) 16... Nd5 {[%emt 0:05:31]} ({Better is} 16... g6 $1 $14) 17. Bd2 {[%emt 0:01:34]} (17. Bg5 $142) 17... g6 {[%emt 0:02:11]} 18. Ba5 {[%emt 0:07:58] White is more active.} Rb8 {[%emt 0:20:56] [#]} (18... Rc8 $16) 19. Qb3 $1 $18 {[%emt 0:06:46][%cal Oe5c6] aiming for Nxc6!} Rc8 {[%emt 0:12:23]} (19... Bg7 20. Nxc6 Qxc6 21. Bxd5 $18 (21. Qxd5 Qxd5 22. Bxd5 Rh5 $11)) 20. Qxb7 {[%emt 0:03:25]} Bg7 {[%emt 0:00:05] [#]} 21. Nxc6 $1 {[%emt 0:10:26][%mdl 512]} Rxc6 {[%emt 0:01:53] [#]} 22. Qa8+ {[%emt 0:00:13]} (22. Qb5 $1 $18 Qc8 (22... Rh5 $2 23. Rac1 $18) 23. Bxd5 (23. Qxd5 Rc4 $18)) 22... Kd7 $2 {[%emt 0:00:09]} (22... Qc8 $16 {might work better.} 23. Qxc8+ (23. Qxa7 $2 {loses.} Ra6 $19) 23... Rxc8) 23. Qxa7+ {[%emt 0:01:11]} Ke8 {[%emt 0:02:48]} 24. Qa8+ {[%emt 0:00:52]} ({Not} 24. Bxd5 $2 Qxd5 25. f3 Bc8 $19) 24... Kd7 $2 {[%emt 0:01:09]} (24... Qc8 25. Qxc8+ Rxc8 26. Bxd5 Rh5) 25. Qb7+ {[%emt 0:00:02]} Kd6 {[%emt 0:04:46]} 26. e4 {[%emt 0:01:19] Weighted Error Value: White=0.38/Black=0.90.  Loses game:     	---       	Black=1      Mistake:       	White=4     	Black=5      Inaccurate:     	White=1     	Black=2      OK:         	White=6     	Black=3      Best:        	White=1     	Black=2      Brilliant:      	White=1     	---} 1-0

[Event "NY Presidents Day GM-A 2024"]
[Site "New York"]
[Date "2024.02.16"]
[Round "2.2"]
[White "Kaliksteyn, Alexander"]
[Black "Yu, Jiangwei"]
[Result "1/2-1/2"]
[ECO "A11"]
[WhiteElo "2363"]
[BlackElo "2357"]
[Annotator "RC"]
[PlyCount "30"]
[EventDate "2024.02.14"]
[EventType "tourn"]
[EventCountry "USA"]
[SourceTitle "playchess.com"]
[Source "ChessBase"]
[SourceQuality "1"]
[TimeControl "5400+30"]

1. c4 {[%emt 0:00:30]} c6 {[%emt 0:00:15]} 2. Nf3 {[%emt 0:01:12]} d5 {[%emt 0:00:48]} 3. e3 {[%emt 0:00:06]} Nf6 {[%emt 0:00:07]} 4. Nc3 {[%emt 0:00:12]} a6 {[%emt 0:00:17]} 5. b3 {[%emt 0:03:00]} Bf5 {[%emt 0:00:38]} 6. Be2 {[%emt 0:01:55]} Nbd7 {[%emt 0:03:58]} 7. Nh4 {[%emt 0:01:56]} Bg6 {[%emt 0:00:06]} 8. O-O {[%emt 0:06:41]} e5 {[%emt 0:12:14]} 9. cxd5 {[%emt 0:00:42]} cxd5 {[%emt 0:03:34]} 10. Re1 {[%emt 0:20:50]} Bd6 {[%emt 0:04:37]} 11. Bb2 {[%emt 0:00:17]} O-O {[%emt 0:18:03]} 12. Nxg6 {[%emt 0:02:52]} hxg6 {[%emt 0:02:06]} 13. Bf1 {[%emt 0:02:42]} Rc8 {[%emt 0:01:48]} 14. Rc1 {[%emt 0:00:20]} Re8 {[%emt 0:06:01]} 15. Nb1 {[%emt 0:09:35]} Rxc1 {[%emt 0:01:15]} 1/2-1/2

[Event "NY Presidents Day GM-A 2024"]
[Site "New York"]
[Date "2024.02.16"]
[Round "2.3"]
[White "Mandizha, Farai"]
[Black "Novik, Maxim"]
[Result "1/2-1/2"]
[ECO "D85"]
[WhiteElo "2367"]
[BlackElo "2399"]
[Annotator "TA"]
[PlyCount "45"]
[EventDate "2024.02.14"]
[EventType "tourn"]
[EventCountry "USA"]
[SourceTitle "playchess.com"]
[Source "ChessBase"]
[SourceQuality "1"]
[TimeControl "5400+30"]

{[%evp 28,45,31,-19,0,0,0,-16,0,0,0,0,0,0,0,0,0,0,29985,3004]} 1. d4 {[%emt 0:03:47]} Nf6 {[%emt 0:00:18]} 2. Nf3 {[%emt 0:00:54]} g6 {[%emt 0:00:13]} 3. c4 {[%emt 0:01:47]} Bg7 {[%emt 0:00:37]} 4. Nc3 {[%emt 0:00:02]} d5 {[%emt 0:01:48]} 5. cxd5 {[%emt 0:02:34]} Nxd5 {[%emt 0:00:19]} 6. e4 {[%emt 0:00:10]} Nxc3 {[%emt 0:00:04]} 7. bxc3 {[%emt 0:00:06]} c5 {[%emt 0:00:00]} 8. Rb1 {[%emt 0:00:50]} O-O {[%emt 0:00:33]} 9. Be2 {[%emt 0:02:25]} Nc6 {[%emt 0:02:17]} 10. d5 {[%emt 0:02:35]} Ne5 {[%emt 0:00:13]} 11. Nxe5 {[%emt 0:02:58]} Bxe5 {[%emt 0:00:01]} 12. Qd2 {[%emt 0:00:02]} e6 {[%emt 0:00:09]} 13. f4 {[%emt 0:02:17]} Bg7 {[%emt 0:03:03]} 14. c4 {[%emt 0:03:18]} b6 {[%emt 0:00:19]} 15. O-O {[%emt 0:00:16]} (15. Bb2 $14) 15... exd5 {[%emt 0:05:34]} 16. cxd5 {[%emt 0:00:33]} Bd4+ {[%emt 0:02:02]} 17. Kh1 {[%emt 0:00:03]} f5 {[%emt 0:01:36] The position is equal.} 18. e5 {[%emt 0:00:04]} Qxd5 {[%emt 0:01:11]} 19. Bf3 {[%emt 0:00:02]} Qc4 {[%emt 0:00:16][%cal Rc4f1] [#]} 20. Bb2 $36 {[%emt 0:00:02][%mdl 2048] White fights for an advantage.} Rb8 {[%emt 0:05:03] White must now prevent ...Rd8.} 21. Bxd4 {[%emt 0:08:46]} Qxd4 {[%emt 0:00:25]} 22. Qxd4 {[%emt 0:01:09]} Ra8 $2 {[%emt 1:15:29][%mdl 8192] [#]} (22... cxd4 $11 23. Bd5+ Kg7) 23. Qd2 {[%emt 1:07:20][%mdl 32768] Weighted Error Value: White=0.08 (flawless) /Black=0.79.  Loses game:     	---       	Black=1      Mistake:       	White=1     	---        OK:         	White=2     	Black=4      Best:        	White=3     	Black=1     . An unexpected result.} (23. Qd5+ $142 Kg7 24. Qxa8 h5 25. Qxa7+ Kh8 26. Rxb6 (26. Qxb6 Kh7 27. Qc7+ Kh6 28. Rb8 h4 29. Rxc8 Rxc8 30. Qxc8 Kg7 31. Rb1 h3 32. Rb7+ Kh6 33. Qh8#) 26... Rg8 27. Rd1 Rg7 28. Rd8+ Kh7 29. Qxg7+ Kxg7 30. Rxc8 Kh6 31. Rb7 h4 32. Rh8#) 1/2-1/2

[Event "NY Presidents Day GM-A 2024"]
[Site "New York"]
[Date "2024.02.16"]
[Round "2.4"]
[White "Lenderman, Aleksandr"]
[Black "Griffith, Kyron"]
[Result "1/2-1/2"]
[ECO "D36"]
[WhiteElo "2521"]
[BlackElo "2367"]
[Annotator "TA"]
[PlyCount "44"]
[EventDate "2024.02.14"]
[EventType "tourn"]
[EventCountry "USA"]
[SourceTitle "playchess.com"]
[Source "ChessBase"]
[SourceQuality "1"]
[TimeControl "5400+30"]

{[%evp 22,44,-2,-12,-7,-6,0,0,0,12,14,0,8,0,1,0,11,0,10,2,9,0,13,0,9]} 1. d4 {[%emt 0:00:02]} Nf6 {[%emt 0:00:06]} 2. c4 {[%emt 0:00:02]} e6 {[%emt 0:00:06]} 3. Nf3 {[%emt 0:00:03]} d5 {[%emt 0:00:08]} 4. cxd5 {[%emt 0:00:04]} exd5 {[%emt 0:00:05]} 5. Qc2 {[%emt 0:00:02]} c6 {[%emt 0:02:16]} 6. Nc3 {[%emt 0:00:13]} g6 {[%emt 0:03:00]} 7. Bg5 {[%emt 0:00:12]} Be7 {[%emt 0:02:32]} 8. e3 {[%emt 0:00:03]} Bf5 {[%emt 0:00:51]} 9. Bd3 {[%emt 0:00:02]} Bxd3 {[%emt 0:00:29]} 10. Qxd3 {[%emt 0:00:03]} Nbd7 {[%emt 0:01:42]} 11. O-O {[%emt 0:00:12]} O-O {[%emt 0:00:53]} 12. Rab1 {[%emt 0:00:12] The position is equal.} Re8 {[%emt 0:02:08]} 13. Qc2 {[%emt 0:00:28]} Nh5 {[%emt 0:05:47]} 14. Bxe7 {[%emt 0:00:38]} Qxe7 {[%emt 0:00:52]} 15. b4 {[%emt 0:00:25]} Nhf6 {[%emt 0:02:41]} 16. Rfc1 {[%emt 0:07:15]} Rac8 {[%emt 0:07:09]} 17. Qb3 {[%emt 0:01:00]} a6 {[%emt 0:03:05]} 18. a4 {[%emt 0:01:10]} Qd6 {[%emt 0:13:20]} 19. Qa2 {[%emt 0:03:55]} Ra8 {[%emt 0:03:01]} 20. Qc2 {[%emt 0:01:24]} Rac8 {[%emt 0:02:06]} 21. Qa2 {[%emt 0:00:26]} Ra8 {[%emt 0:00:04]} 22. Qc2 {[%emt 0:00:06]} Rac8 {[%emt 0:00:05] A rather calm draw.   Weighted Error Value: White=0.06 (flawless) /Black=0.04 (flawless) .  OK:         	White=2     	Black=3} 1/2-1/2